Cogmind - Beta 12 X1 @@@ ROGUE MODE // 2022.08.23 @ 18:07:09 Player: btmk16 Result: Self-destructed Performance ------------- Evolutions (6) 3000 Regions Visited (8) 1600 Robots Destroyed (22) 110 Value Destroyed (522) 522 Prototype IDs (1) 20 Alien Tech Used (0) 0 Bonus (512) 512 TOTAL SCORE: 5764 Bonus ------- High Alert Combat Kills 12 Entered DSFs 500 Cogmind --------- Core Integrity 628/1150 Matter 262/300 Energy 20/100 System Corruption 0% Temperature Cool (0) Movement Core (50) Location -4/Factory Parts ------- > --- POWER (2) -------- (None) > --- PROPULSION (8) --- (None) > --- UTILITY (7) ------ Improved Signal Interpreter > --- WEAPON (2) ------- (None) > --- INVENTORY (5) ---- Fission Core Hardened Light Armor Plating Improved Field Recycling Unit (0) Autogun Peak State ------------ > --- POWER ------------ Micro Fission Core > --- PROPULSION ------- Improved Hover Unit Gravmag Array VTOL Module VTOL Module > --- UTILITY ---------- Advanced Weight Redist. System Improved Signal Interpreter Hardened Light Armor Plating > --- WEAPON ----------- Great Maul Great Axe > --- INVENTORY -------- Fission Core Hardened Light Armor Plating Hardened Light Armor Plating Improved Field Recycling Unit Autogun [Rating: 38] Favorites ----------- Power Light Ion Engine Engine Light Ion Engine Power Core Fission Core Propulsion Flight Unit Treads Light Treads Hover Unit Cooled Airjet Flight Unit Flight Unit Utility Hardened Light Armor Plating Device Advanced Weight Redist. System Processor Improved Signal Interpreter Protection Hardened Light Armor Plating Weapon Light Assault Rifle Ballistic Gun Light Assault Rifle Launcher Improved Grenade Launcher Impact Weapon Great Maul Slashing Weapon Great Axe Build | -11 -10 -9 -8 -7 -7 -6 -5 -4 ------- Run | Scr Mat Mat Mat Fac DSF Fac Fac Fac Slots Evolved 12 | . . 2 2 2 . 2 2 2 Power 1 | . . . . . . 1 . . Propulsion 6 | . . 2 1 1 . 1 . 1 Utility 5 | . . . 1 1 . . 2 1 Weapon . | . . . . . . . . . Parts Attached 46 | 4 3 11 1 . 5 5 13 4 Power 6 | . 1 2 . . . 2 1 . Engine 4 | . 1 2 . . . 1 . . Core 2 | . . . . . . 1 1 . Reactor . | . . . . . . . . . Propulsion 19 | 2 . 6 . . 1 1 5 4 Treads 2 | 2 . . . . . . . . Leg . | . . . . . . . . . Wheel . | . . . . . . . . . Hover 4 | . . . . . . 1 3 . Flight 13 | . . 6 . . 1 . 2 4 Utility 12 | . 2 3 1 . 1 2 3 . Device 6 | . 2 1 . . 1 1 1 . Storage . | . . . . . . . . . Processor 1 | . . . . . . 1 . . Hackware . | . . . . . . . . . Protection 5 | . . 2 1 . . . 2 . Artifact . | . . . . . . . . . Weapon 9 | 2 . . . . 3 . 4 . Energy Gun . | . . . . . . . . . Energy Cannon . | . . . . . . . . . Ballistic Gun 3 | 2 . . . . . . 1 . Ballistic Cannon . | . . . . . . . . . Launcher 4 | . . . . . 3 . 1 . Special Weapon . | . . . . . . . . . Impact Weapon 1 | . . . . . . . 1 . Slashing Weapon 1 | . . . . . . . 1 . Piercing Weapon . | . . . . . . . . . Special Melee Weapon . | . . . . . . . . . Unidentified Prototypes 1 | . . . . . . 1 . . Parts Lost 21 | . . 1 1 . 1 . 8 10 Power 2 | . . 1 . . . . . 1 Propulsion 14 | . . . 1 . . . 6 7 Utility 3 | . . . . . 1 . 1 1 Weapon 2 | . . . . . . . 1 1 Highest Loss Streak 12 | . . 1 1 . 1 . 3 12 To Critical Strikes . | . . . . . . . . . Average Slot Usage (%) 71 | . 80 96 90 . 59 72 52 34 Engine 5 | . 9 8 9 . 7 6 . . Core 2 | . . . . . . 5 4 3 Treads 3 | . 28 . . . . . . . Hover 4 | . . . . . . 5 9 6 Flight 22 | . . 42 36 . 24 26 13 10 Device 7 | . 14 7 9 . 7 6 5 5 Processor 2 | . . . . . . 4 5 5 Protection 7 | . . 14 18 . 7 6 5 1 Ballistic Gun 10 | . 28 22 18 . 11 . . . Launcher 1 | . . . . . . 7 . . Impact Weapon 1 | . . . . . . . 3 . Naked Turns . | . . . . . . . . . Heaviest Build 24 | 2 6 15 14 11 20 24 24 14 Greatest Support 26 | 3 9 18 16 12 21 24 26 24 Greatest Overweight (x) 3 | . . . . . . . 3 . Average Overweight (x) . | . . . . . . . . . Largest Inventory Capacity 5 | 5 5 5 5 5 5 5 5 5 Average Capacity 5 | 5 5 5 5 5 5 5 5 5 Most Carried 5 | 5 5 5 5 5 5 5 5 4 Average Carried 4 | 2 4 5 5 5 4 5 4 4 Final Capacity 5 | 5 5 5 5 5 5 5 5 5 Final Carried 5 | 5 5 5 5 5 5 5 4 4 Class Distribution -------------------- 49% | Sprinter 22% | Mutant 16% | Scavenger-Mutant 12% | Scavenger-Sprinter Dominant Class ---------------- Mutant | -10/Materials Sprinter | -9/Materials Sprinter | -8/Materials Sprinter | -7/Factory Mutant | -7/DSF Sprinter | -6/Factory Scavenger-Mutant | -5/Factory Scavenger-Sprinter | -4/Factory Resources | -11 -10 -9 -8 -7 -7 -6 -5 -4 ----------- Run | Scr Mat Mat Mat Fac DSF Fac Fac Fac Matter Collected 613 | 84 38 108 65 . 16 . 302 . Remotely . | . . . . . . . . . Salvage Created 619 | . 38 166 . . 16 . 399 . Parts 43 | . 2 12 . . 3 . 26 . Haulers Intercepted 2 | . . 1 . . . . 1 . Recyclers Shooed . | . . . . . . . . . Parts Field Recycled . | . . . . . . . . . Retrieved Matter . | . . . . . . . . . Parts Self-Destructed . | . . . . . . . . . Prevented . | . . . . . . . . . Kills | -11 -10 -9 -8 -7 -7 -6 -5 -4 ------- Run | Scr Mat Mat Mat Fac DSF Fac Fac Fac Combat Hostiles Destroyed 17 | . 1 5 . . 3 . 8 . Melee 3 | . . . . . . . 3 . Guns 6 | . 1 5 . . . . . . AOE 8 | . . . . . 3 . 5 . Classes Destroyed 9 | . 1 3 . . 1 . 4 . Worker 1 | . . . . . . . 1 . Hauler 2 | . . 1 . . . . 1 . Recycler 1 | . . . . . . . 1 . Watcher 1 | . . . . . . . 1 . Swarmer 11 | . . 4 . . . . 7 . Cutter 3 | . . . . . 3 . . . Grunt 1 | . 1 . . . . . . . Sentry 1 | . . 1 . . . . . . Programmer 1 | . . . . . . . 1 . Best Kill Streak 9 | . 1 3 . . 3 . 9 . Combat Bots Only 6 | . 1 3 . . 3 . 6 . Max Kills in Single Turn 5 | . 1 1 . . 2 . 5 . Gunslinging . | . . . . . . . . . Exploded 4 | . . . . . 2 . 4 . Melee 1 | . . . . . . . 1 . Uniques/NPCs Destroyed . | . . . . . . . . . Combat | -11 -10 -9 -8 -7 -7 -6 -5 -4 -------- Run | Scr Mat Mat Mat Fac DSF Fac Fac Fac Damage Taken 2152 | . 22 251 73 . 183 105 648 870 Core 752 | . . 29 16 . 20 27 138 522 Absorbed by Shields . | . . . . . . . . . Core Remaining (%) 95 | 100 100 92 97 . 97 96 86 . Volleys Fired 30 | . 3 23 . . 3 . 1 . Largest 2 | . 2 2 . . 2 . 1 . Hottest 50 | . 40 40 . . 50 . 36 . Shots Fired 57 | . 6 46 . . 4 . 1 . Gun 53 | . 6 46 . . 1 . . . Cannon . | . . . . . . . . . Launcher 4 | . . . . . 3 . 1 . Special . | . . . . . . . . . Kinetic 53 | . 6 46 . . 1 . . . Thermal . | . . . . . . . . . Explosive 4 | . . . . . 3 . 1 . Electromagnetic . | . . . . . . . . . Robot Hit Streak 8 | . 2 8 . . . . 1 . Robot Miss Streak 3 | . 3 3 . . 1 . . . Penetration Max . | . . . . . . . . . Secondary Targets . | . . . . . . . . . Shots Hit Robots 38 | . 2 29 . . . . 7 . Core Hits 31 | . 2 12 . . 4 . 13 . Critical Kills 2 | . . . . . . . 2 . Critical Parts Destroyed . | . . . . . . . . . Critical Strikes 2 | . . . . . . . 2 . Smash 2 | . . . . . . . 2 . Melee Attacks 10 | . . . . . . . 10 . Impact 10 | . . . . . . . 10 . Slashing . | . . . . . . . . . Piercing . | . . . . . . . . . Sneak Attacks 2 | . . . . . . . 2 . Combat Hostiles . | . . . . . . . . . Follow-up Attacks . | . . . . . . . . . Damage Inflicted 1293 | . 15 229 . . 173 . 876 . Guns 244 | . 15 229 . . . . . . Cannons . | . . . . . . . . . Explosions 654 | . . . . . 173 . 481 . Melee 395 | . . . . . . . 395 . Ramming . | . . . . . . . . . Kinetic 244 | . 15 229 . . . . . . Thermal 121 | . . . . . . . 121 . Explosive 533 | . . . . . 173 . 360 . Electromagnetic . | . . . . . . . . . Impact 395 | . . . . . . . 395 . Slashing . | . . . . . . . . . Piercing . | . . . . . . . . . Highest Corruption . | . . . . . . . . . Average Corruption . | . . . . . . . . . Corruption Purged . | . . . . . . . . . Corruption Blocked . | . . . . . . . . . Overload Shots . | . . . . . . . . . Overflow Damage 34 | . . . . . . . 34 . Projectiles . | . . . . . . . . . Explosions 3 | . . . . . . . 3 . Melee 31 | . . . . . . . 31 . Knockbacks . | . . . . . . . . . Impact . | . . . . . . . . . Kinetic . | . . . . . . . . . Secondary . | . . . . . . . . . Self-Inflicted Damage 44 | . . . . . 44 . . . Shots 2 | . . . . . 2 . . . Rammed . | . . . . . . . . . Targets Rammed . | . . . . . . . . . Kicked . | . . . . . . . . . Crushed . | . . . . . . . . . Highest Temperature 312 | . 6 312 7 . . 1 11 . Average Temperature 107 | . 6 160 2 . . 1 9 . Received Heat Transfer 171 | . 12 54 9 . . . 96 . Effects 2 | . . 2 . . . . . . Energy Bleed 2 | . . 2 . . . . . . Siege Activations . | . . . . . . . . . Robots Corrupted . | . . . . . . . . . Combat Hostiles . | . . . . . . . . . Parts Fried 1 | . . . . . . . 1 . Impact Corruptions 2 | . . . . . . . 2 . Robots Melted . | . . . . . . . . . Combat Hostiles . | . . . . . . . . . Parts Melted . | . . . . . . . . . Heat Transferred 150 | . . . . . . . 150 . Parts Sabotaged . | . . . . . . . . . Parts Stolen . | . . . . . . . . . Parts Stripped . | . . . . . . . . . Power Chain Reactions . | . . . . . . . . . Missiles Intercepted . | . . . . . . . . . Alert | -11 -10 -9 -8 -7 -7 -6 -5 -4 ------- Run | Scr Mat Mat Mat Fac DSF Fac Fac Fac Peak Influence 636 | . 60 225 139 63 123 103 636 311 Initial 311 | . . 25 94 58 44 58 50 311 Average 177 | . 23 136 106 59 76 78 384 291 Maximum Alert Level 2 | . . 1 . . . . 2 1 Low Security (%) 67 | 100 100 65 100 100 100 100 23 . Level 1 18 | . . 34 . . . . 27 100 Level 2 13 | . . . . . . . 49 . Level 3 . | . . . . . . . . . Level 4 . | . . . . . . . . . Level 5 . | . . . . . . . . . High Security . | . . . . . . . . . Max Security . | . . . . . . . . . Squads Dispatched 7 | . 2 . . . 1 2 1 1 Investigation 1 | . . . . . . 1 . . Extermination . | . . . . . . . . . Reinforcement 6 | . 2 . . . 1 1 1 1 Assault . | . . . . . . . . . Garrison . | . . . . . . . . . Intercept . | . . . . . . . . . Searches Triggered . | . . . . . . . . . Construction Impeded . | . . . . . . . . . Haulers Reinforced . | . . . . . . . . . Active Scanning Responses . | . . . . . . . . . Cargo Convoy Interrupts . | . . . . . . . . . Stealth | -11 -10 -9 -8 -7 -7 -6 -5 -4 --------- Run | Scr Mat Mat Mat Fac DSF Fac Fac Fac Distress Signals 6 | . . 1 2 1 . . 2 . Communications Jammed . | . . . . . . . . . Distress Signals . | . . . . . . . . . Times Spotted 65 | . 4 8 7 . 5 4 32 5 Peak Tracking Total 13 | . 1 4 8 2 4 2 13 5 Tactical Retreats 6 | . . . . . . 1 5 . Traps | -11 -10 -9 -8 -7 -7 -6 -5 -4 ------- Run | Scr Mat Mat Mat Fac DSF Fac Fac Fac Traps Triggered 2 | . . . . . 1 1 . . Indirectly . | . . . . . . . . . Trap Hack Attempts . | . . . . . . . . . Triggered . | . . . . . . . . . Disarmed . | . . . . . . . . . Reprogrammed . | . . . . . . . . . Reused . | . . . . . . . . . Traps Extracted . | . . . . . . . . . Installed . | . . . . . . . . . Triggered . | . . . . . . . . . Machines | -11 -10 -9 -8 -7 -7 -6 -5 -4 ---------- Run | Scr Mat Mat Mat Fac DSF Fac Fac Fac Machines Disabled 4 | . . . . . . . 4 . Max in Single Turn 4 | . . . . . . . 4 . Machines Sabotaged . | . . . . . . . . . Garrisons Compromised . | . . . . . . . . . Overloaded Fab Kills . | . . . . . . . . . Hacking | -11 -10 -9 -8 -7 -7 -6 -5 -4 --------- Run | Scr Mat Mat Mat Fac DSF Fac Fac Fac Machines Accessed 6 | . 1 2 1 1 . 1 . . Terminals 6 | . 1 2 1 1 . 1 . . Fabricators . | . . . . . . . . . Repair Stations . | . . . . . . . . . Recycling Units . | . . . . . . . . . Scanalyzers . | . . . . . . . . . Garrison Access . | . . . . . . . . . Total Hacks 15 | . 2 5 1 3 . 4 . . Successful 6 | . 1 3 1 1 . . . . Failed 9 | . 1 2 . 2 . 4 . . Catastrophic 1 | . . . . . . 1 . . Database Lockouts . | . . . . . . . . . Manual 6 | . 2 . . . . 4 . . Terminals 15 | . 2 5 1 3 . 4 . . Fabricators . | . . . . . . . . . Repair Stations . | . . . . . . . . . Recycling Units . | . . . . . . . . . Scanalyzers . | . . . . . . . . . Garrison Access . | . . . . . . . . . Terminal Hacks 6 | . 1 3 1 1 . . . . Open DSF 1 | . . . . 1 . . . . Level Access Points 2 | . . 1 1 . . . . . Locate Traps 1 | . . 1 . . . . . . Zone Layout 2 | . 1 1 . . . . . . Fabricator Hacks . | . . . . . . . . . Repair Station Hacks . | . . . . . . . . . Recycling Unit Hacks . | . . . . . . . . . Scanalyzer . | . . . . . . . . . Garrison Access Hacks . | . . . . . . . . . Unauthorized Hacks . | . . . . . . . . . Terminals . | . . . . . . . . . Fabricators . | . . . . . . . . . Repair Stations . | . . . . . . . . . Recycling Units . | . . . . . . . . . Scanalyzers . | . . . . . . . . . Garrison Access . | . . . . . . . . . Data Cores Recovered . | . . . . . . . . . Used . | . . . . . . . . . Hacking Detections 4 | . 1 1 . 1 . 1 . . Full Trace Events 1 | . . . . . . 1 . . Feedback Events . | . . . . . . . . . Feedback Blocked . | . . . . . . . . . Robot Schematics Acquired . | . . . . . . . . . Robots Built . | . . . . . . . . . Authchips . | . . . . . . . . . Time . | . . . . . . . . . Total Robot Build Rating . | . . . . . . . . . Part Schematics Acquired . | . . . . . . . . . Parts Built . | . . . . . . . . . Authchips . | . . . . . . . . . Time . | . . . . . . . . . Total Part Build Rating . | . . . . . . . . . Parts Repaired . | . . . . . . . . . Time . | . . . . . . . . . Parts Recycled . | . . . . . . . . . Recycled Matter . | . . . . . . . . . Retrieved Matter . | . . . . . . . . . Retrieved Components . | . . . . . . . . . Parts Scanalyzed . | . . . . . . . . . Part Schematics Acquired . | . . . . . . . . . Parts Damaged . | . . . . . . . . . Bothacking | -11 -10 -9 -8 -7 -7 -6 -5 -4 ------------ Run | Scr Mat Mat Mat Fac DSF Fac Fac Fac Used RIF Installer . | . . . . . . . . . Robots Hacked . | . . . . . . . . . Non-combat . | . . . . . . . . . Combat . | . . . . . . . . . Robot Hacks Applied . | . . . . . . . . . Relay Couplers Released . | . . . . . . . . . Fabnet Peak Effective % . | . . . . . . . . . Robots Rewired . | . . . . . . . . . Allies Hacked . | . . . . . . . . . Hacks Repelled . | . . . . . . . . . Allies | -11 -10 -9 -8 -7 -7 -6 -5 -4 -------- Run | Scr Mat Mat Mat Fac DSF Fac Fac Fac Total Allies . | . . . . . . . . . Largest Group . | . . . . . . . . . Highest-Rated Group . | . . . . . . . . . Highest-Rated Ally . | . . . . . . . . . Total Orders . | . . . . . . . . . Ally Attacks . | . . . . . . . . . Total Damage . | . . . . . . . . . Kills . | . . . . . . . . . Allies Corrupted . | . . . . . . . . . Allies Melted . | . . . . . . . . . Intel | -11 -10 -9 -8 -7 -7 -6 -5 -4 ------- Run | Scr Mat Mat Mat Fac DSF Fac Fac Fac Robot Analysis Total . | . . . . . . . . . Derelict Logs Recovered . | . . . . . . . . . Drone Launches . | . . . . . . . . . Drone Recoveries . | . . . . . . . . . Exploration | -11 -10 -9 -8 -7 -7 -6 -5 -4 ------------- Run | Scr Mat Mat Mat Fac DSF Fac Fac Fac Turns Passed 772 | 31 91 164 38 3 50 147 219 29 Spaces Moved 1431 | 40 145 197 92 7 50 414 417 69 Core 193 | 40 145 5 . . . . 3 . Treads . | . . . . . . . . . Legs . | . . . . . . . . . Wheels . | . . . . . . . . . Hover 119 | . . . . . . . 119 . Flight 1119 | . . 192 92 7 50 414 295 69 Fastest Speed 29 | 50 50 31 31 34 29 29 29 30 Average Speed 35 | 50 50 31 31 34 31 29 37 32 Slowest Speed 152 | 50 50 50 34 34 34 29 152 37 Overloaded Moves 1 | . . . . . . . 1 . Propulsion Burnouts . | . . . . . . . . . Robots Hopped 6 | . . 1 . . . 1 2 2 Cave-ins Triggered . | . . . . . . . . . Exploration Rate (%) 19 | 3 34 28 13 . 41 18 14 4 Regions Visited 8 Branch Regions . Pre-discovered Areas . | . . . . . . . . . Known Exits Taken 5 | . . 1 1 1 . 1 1 . Unknown Exits Taken 2 | 1 1 . . . . . . . Scrap Searched . | . . . . . . . . . Spaces Dug 1 | . . . . . 1 . . . Terrain Destroyed 47 | . . . . . 9 . 38 . Melee . | . . . . . . . . . Projectile . | . . . . . . . . . AOE 47 | . . . . . 9 . 38 . Terrain Rammed . | . . . . . . . . . Walls Destroyed . | . . . . . . . . . Machines Disabled . | . . . . . . . . . Actions | -11 -10 -9 -8 -7 -7 -6 -5 -4 --------- Run | Scr Mat Mat Mat Fac DSF Fac Fac Fac Total 1613 | 48 159 259 100 6 78 438 454 71 Wait 36 | . . 23 7 . . . 6 . Move 1411 | 39 144 194 91 6 49 411 412 65 Hop 6 | . . 1 . . . 1 2 2 Pick Up 13 | 5 5 1 . . 1 . 1 . Fast Attach 34 | 4 2 5 1 . 3 5 10 4 Attach 5 | . 1 . . . 1 . 3 . Detach 3 | . . . . . . . 3 . Swap 7 | . . 6 . . 1 . . . Drop 22 | . 4 6 1 . 2 3 6 . Fire 30 | . 3 23 . . 3 . 1 . Melee 10 | . . . . . . . 10 . Ram . | . . . . . . . . . Kick . | . . . . . . . . . Crush . | . . . . . . . . . Escape Stasis 36 | . . . . . 18 18 . . Rewire . | . . . . . . . . . Trap . | . . . . . . . . . Miscellaneous . | . . . . . . . . . Route ------- -11/Scrapyard -10/Materials -9/Materials (discovered 4 exits: *Mat x3 / [*Min]) -8/Materials (discovered 3 exits: *Fac x3) -7/Factory -7/DSF -6/Factory -5/Factory -4/Factory (discovered 1 exit: [*Res]) History --------- Turn | Location | Event 12 | -11/Scrapyard | Discovered new exit (range 15) 32 | -11/Scrapyard | Entered Materials 109 | -10/Materials | Discovered new exit (range 15) 123 | -10/Materials | Entered another Materials area 123 | -9/Materials | Evolved 2 slots: Propulsion x2 162 | -9/Materials | Identified exit to Materials 274 | -9/Materials | Discovered new exit (range 14) 287 | -9/Materials | Entered another Materials area 287 | -8/Materials | Evolved 2 slots: Propulsion x1, Utility x1 291 | -8/Materials | Identified exit to Factory 325 | -8/Materials | Entered Factory 325 | -7/Factory | Evolved 2 slots: Propulsion x1, Utility x1 327 | -7/Factory | Identified exit to DSF 328 | -7/Factory | Entered DSF 360 | -7/DSF | Discovered new exit (range 15) 368 | -7/DSF | Additional patrols routed to DSF 378 | -7/DSF | Entered Factory 378 | -6/Factory | Evolved 2 slots: Power x1, Propulsion x1 498 | -6/Factory | Spotted B-75 Beast 521 | -6/Factory | Discovered new exit (range 16) 525 | -6/Factory | Identified exit to Factory 525 | -6/Factory | Entered another Factory area 525 | -5/Factory | Evolved 2 slots: Utility x2 600 | -5/Factory | Lost 3 parts (2n1w) 694 | -5/Factory | Lost 3 parts (3n) 740 | -5/Factory | Discovered new exit (range 13) 743 | -5/Factory | Identified exit to Factory 744 | -5/Factory | Entered another Factory area 744 | -4/Factory | Evolved 2 slots: Propulsion x1, Utility x1 756 | -4/Factory | Discovered new exit (range 16) 773 | -4/Factory | Self-destructed Last Messages --------------- 00769_ Imp. Surge Thruster severed. 00769_ K-01 Serf collects debris. 00769_ K-01 Serf pushes Y-64 Sentinel. 00770_ Acquired Imp. Surge Thruster. 00770_ Gravmag Array destroyed. 00770_ Knocked back. 00770_ K-01 Serf pushes Y-64 Sentinel. 00771_ Acquired Imp. Surge Thruster. 00772_ K-01 Serf pushes Y-64 Sentinel. 00772_ U-05 Engineer builds a Wall. 00772_ Penetrated by Slug. 00772_ Imp. Surge Thruster destroyed. 00772_ VTOL Module destroyed. 00772_ Field Propulsion Drive destroyed. 00772_ Imp. Surge Thruster destroyed. 00772_ Adv. Weight Redist. System destroyed. 00772_ Critical hit (Blast). 00772_ Knocked back. 00773_ K-01 Serf pushes Y-64 Sentinel. 00773_ U-05 Engineer lays Concrete. Map ----- +----------------------------------------------------+ | ?????????????????????????????????????????????????? | | ?????????????????????????????????????????????????? | | ?????????????????????????????????????????????????? | | ?????????????????????????????????????????????????? | | ?????????????????????????????????????????????????? | | ?????????????????????????????????????????????????? | | ?????????????????????????????????????????????????? | | ?????????????????? ??????????????????????????????? | | ????????##???????? ??????????????????????????????? | | ???????? ???????? ??????????????????????????????? | | ???????? ???????? ?????? ???????????????????????? | | #??????? "??????? ???"?? ???????????????????????? | | ??????? "??????# ?? "?" ???????????????????????? | | ???????? "??????# ?? " " #??????????????????????? | | ??# ??? ???#?# #" " " #??????????????????????? | | ??# """" """" #?# #" " " #??????????????????????? | | ??# """" """" #?# #T " " #??????????????????????? | | ??# """" """" #?# #" " " #??????????????????????? | | ??? """" """" #?# #" " " #??????????????????????? | | ????? ???# #" ###########????????????? | | ??????? ### # # ########### ?? | | #########+#### ! # ! ? | | =%= ? | | k ? | | ! % %H kY | | @ % | | |%!=%!cc | | ###+######### # *!#+#= u | | ?? ???????### %= ####+####???? | | ?? ?????????# = ] # # ????? | | ? ????????# ########### ? | | ? ????????# #?????????? | | ???????# ] [#??????????? | | ???????# #???????????? ? | | ??????# #????????????? ? | | ########??????############???????????????########? | | | | | | | | | | | | | | | | | | | | | | | | | | | | | +----------------------------------------------------+ Best States ------------- Heat Dissipation 43 Energy Generation 23 Energy Capacity 335 Matter Stores 272 Matter Capacity 300 Sight Range 16 Terrain Scan Range 14 Terrain Scan Density 10 Additional Mass Support 9 Armor Coverage 300 Evasion (%) 64 Recoil Reduction 2 Item Schematics ----------------- None Robot Schematics ------------------ None Fabricated ------------ Nothing Alien Tech Used ----------------- None Achievements -------------- None Challenges ------------ None Game ------ Seed TrackerMyomerBay Manual? 0 Play Time 00:15:45 Cumulative 467.7 hours Start 2022.08.23 @ 17:52:11 End 2022.08.23 @ 18:07:09 Sessions 1 Manual Loads 0 Difficulty Rogue Special Mode None Game No. 519 Rogue 518 Adventurer 0 Explorer 1 Win Type - Total 14 Types 9/0/2/3/0/0/0/0/0 Lore% 79 Gallery% 88 Achievement% 69 Wizard Run 0 Options --------- ASCII 0 Keyboard 1 Movement Vi Keybinds 0 Fullscreen 1 Font 18/SmallcapsGlow Map View 76x50 Tactical HUD 1 Map Filters NONE Filters NONE Steam 1 RUN: e585f9ad-2476-487c-8624-87fe3bb5d1b5